fUSD/lending_fUSD_20250702
["ID","MTS","AMOUNT","RATE_DAILY","PERIOD"]
[369038814,1751441452418,-490.0,0.00016593,2]
[369038816,1751441452428,-285.19195337,0.00016593,2]
[369038818,1751441452437,-490.0,0.00016593,2]
[369038820,1751441452446,-490.0,0.00016593,2]
[369038822,1751441452455,-490.0,0.00016593,2]
[369038824,1751441452464,-490.0,0.00016593,2]
[369038826,1751441452473,-490.0,0.00016593,2]
[369038828,1751441452483,-490.0,0.00016593,2]
[369038830,1751441452492,-490.0,0.00016593,2]
[369038832,1751441452501,-490.0,0.00016593,2]
[369038834,1751441452510,-181.23740614,0.00016593,2]
[369038836,1751441452519,-490.0,0.00016593,2]
[369038838,1751441452528,-490.0,0.00016593,2]
[369038840,1751441452537,-490.0,0.00016593,2]
[369038842,1751441452546,-490.0,0.00016593,2]
[369038844,1751441452555,-490.0,0.00016593,2]
[369038846,1751441452564,-490.0,0.00016593,2]
[369038847,1751441452574,-490.0,0.00016593,2]
[369038849,1751441452585,-490.0,0.00016593,2]
[369038851,1751441452596,-490.0,0.00016593,2]
[369038853,1751441452605,-490.0,0.00016593,2]
[369038856,1751441452615,-490.0,0.00016593,2]
[369038857,1751441452624,-491.39359461,0.00016593,2]
[369038860,1751441452634,-490.0,0.00016593,2]
[369038861,1751441452643,-490.0,0.00016593,2]
[369038863,1751441452652,-181.01770946,0.00016593,2]
[369038866,1751441452662,-490.0,0.00016593,2]
[369038867,1751441452672,-490.0,0.00016593,2]
[369038870,1751441452682,-490.0,0.00016593,2]
[369038871,1751441452691,-490.0,0.00016593,2]
[369038873,1751441452700,-490.0,0.00016593,2]
[369038875,1751441452710,-490.0,0.00016593,2]
[369038877,1751441452720,-490.0,0.00016593,2]
[369038879,1751441452730,-490.0,0.00016593,2]
[369038881,1751441452739,-490.0,0.00016593,2]
[369038883,1751441452749,-182.06474218,0.00016593,2]
[369038885,1751441452758,-490.0,0.00016593,2]
[369038887,1751441452767,-490.0,0.00016593,2]
[369038889,1751441452777,-490.0,0.00016593,2]
[369038891,1751441452786,-490.0,0.00016593,2]
[369038893,1751441452795,-490.0,0.00016593,2]
[369038895,1751441452805,-503.23,0.00016593,2]
[369038897,1751441452814,-371.61468855,0.00016593,2]
[369038899,1751441452823,-490.0,0.00016593,2]
[369038901,1751441452832,-490.0,0.00016593,2]
[369038903,1751441452841,-490.0,0.00016593,2]
[369038905,1751441452850,-490.0,0.00016593,2]
[369038907,1751441452860,-490.0,0.00016593,2]
[369038909,1751441452869,-490.0,0.00016593,2]
[369038911,1751441452878,-490.0,0.00016593,2]
[369038913,1751441452887,-490.0,0.00016593,2]
[369038915,1751441452897,-490.0,0.00016593,2]
[369038917,1751441452906,-490.0,0.00016593,2]
[369038919,1751441452915,-501.8150606,0.00016593,2]
[369038921,1751441452924,-608.8942507,0.00016593,2]
[369038923,1751441452934,-490.0,0.00016593,2]
[369038925,1751441452947,-490.0,0.00016593,2]
[369038927,1751441452956,-490.0,0.00016593,2]
[369038929,1751441452965,-490.0,0.00016593,2]
[369038931,1751441452974,-490.0,0.00016593,2]
[369038933,1751441452983,-490.0,0.00016593,2]
[369038935,1751441452992,-493.8592707,0.00016593,2]
[369038937,1751441453001,-490.0,0.00016593,2]
[369038939,1751441453011,-490.0,0.00016593,2]
[369038941,1751441453020,-490.0,0.00016593,2]
[369038943,1751441453030,-600.42,0.00016593,2]
[369038945,1751441453039,-490.0,0.00016593,2]
[369038947,1751441453048,-484.76629175,0.00016593,2]
[369038949,1751441453056,-491.62615739,0.00016593,2]
[369038951,1751441453066,-490.0,0.00016593,2]
[369038953,1751441453075,-490.0,0.00016593,2]
[369038955,1751441453084,-490.0,0.00016593,2]
[369038957,1751441453094,-233.98154638,0.00016593,2]
[369038959,1751441453104,-490.0,0.00016593,2]
[369038961,1751441453113,-490.0,0.00016593,2]
[369038963,1751441453122,-490.0,0.00016593,2]
[369038965,1751441453131,-490.0,0.00016593,2]
[369038967,1751441453140,-490.0,0.00016593,2]
[369038969,1751441453150,-490.0,0.00016593,2]
[369038971,1751441453159,-490.0,0.00016593,2]
[369038973,1751441453168,-490.0,0.00016593,2]
[369038976,1751441453178,-490.0,0.00016593,2]
[369038978,1751441453187,-490.0,0.00016593,2]
[369038980,1751441453197,-490.0,0.00016593,2]
[369038982,1751441453206,-490.0,0.00016593,2]
[369038984,1751441453215,-490.0,0.00016593,2]
[369038986,1751441453224,-490.0,0.00016593,2]
[369038988,1751441453234,-490.0,0.00016593,2]
[369038990,1751441453243,-490.0,0.00016593,2]
[369038992,1751441453252,-300.0,0.00016593,2]
[369038994,1751441453260,-490.0,0.00016593,2]
[369038995,1751441453270,-490.0,0.00016593,2]
[369038997,1751441453279,-635.72,0.00016593,2]
[369038999,1751441453288,-933.48,0.00016593,2]
[369039001,1751441453297,-490.0,0.00016593,2]
[369039003,1751441453306,-490.0,0.00016593,2]
[369039005,1751441453315,-1754.53,0.00016593,2]
[369039007,1751441453325,-490.0,0.00016593,2]
[369039009,1751441453334,-157.154687,0.00016593,2]
[369039011,1751441453344,-490.0,0.00016593,2]
[369039013,1751441453353,-490.0,0.00016593,2]
[369039015,1751441453362,-490.0,0.00016593,2]
[369039017,1751441453371,-496.37050767,0.00016593,2]
[369039019,1751441453380,-1827.54,0.00016593,2]
[369039022,1751441453390,-490.0,0.00016593,2]
[369039023,1751441453399,-490.0,0.00016593,2]
[369039024,1751441453408,-490.0,0.00016593,2]
[369039025,1751441453416,-490.0,0.00016593,2]
[369039026,1751441453425,-490.0,0.00016593,2]
[369039027,1751441453434,-490.0,0.00016593,2]
[369039028,1751441453443,-490.0,0.00016593,2]
[369039029,1751441453452,-490.0,0.00016593,2]
[369039030,1751441453461,-491.4100046,0.00016593,2]
[369039031,1751441453470,-490.0,0.00016593,2]
[369039032,1751441453479,-490.0,0.00016593,2]
[369039033,1751441453488,-490.0,0.00016593,2]
[369039034,1751441453497,-490.0,0.00016593,2]
[369039035,1751441453506,-490.0,0.00016593,2]
[369039036,1751441453516,-846.0,0.00016593,2]
[369039038,1751441453525,-490.0,0.00016593,2]
[369039040,1751441453534,-671.7,0.00016593,2]
[369039042,1751441453543,-490.0,0.00016593,2]
[369039044,1751441453552,-490.0,0.00016593,2]
[369039046,1751441453561,-490.0,0.00016593,2]
[369039048,1751441453571,-490.0,0.00016593,2]
[369039050,1751441453580,-490.0,0.00016593,2]
[369039052,1751441453590,-490.0,0.00016593,2]
[369039054,1751441453599,-490.0,0.00016593,2]
[369039056,1751441453608,-490.0,0.00016593,2]
[369039058,1751441453617,-490.0,0.00016593,2]
[369039060,1751441453627,-713.41,0.00016593,2]
[369039062,1751441453636,-490.0,0.00016593,2]
[369039064,1751441453645,-591.23543757,0.00016593,2]
[369039066,1751441453654,-490.0,0.00016593,2]
[369039068,1751441453663,-490.0,0.00016593,2]
[369039070,1751441453673,-490.0,0.00016593,2]
[369039072,1751441453682,-490.0,0.00016593,2]
[369039074,1751441453691,-1119.99,0.00016593,2]
[369039076,1751441453700,-490.0,0.00016593,2]
[369039078,1751441453709,-490.0,0.00016593,2]
[369039080,1751441453719,-490.0,0.00016593,2]
[369039082,1751441453728,-506.72,0.00016593,2]
[369039084,1751441453736,-490.0,0.00016593,2]
[369039086,1751441453746,-490.0,0.00016593,2]
[369039088,1751441453756,-585.08,0.00016593,2]
[369039090,1751441453765,-490.0,0.00016593,2]
[369039092,1751441453774,-490.0,0.00016593,2]
[369039094,1751441453783,-490.0,0.00016593,2]
[369039096,1751441453792,-490.0,0.00016593,2]
[369039098,1751441453802,-490.0,0.00016593,2]
[369039099,1751441453811,-490.0,0.00016593,2]
[369039101,1751441453821,-490.0,0.00016593,2]
[369039103,1751441453831,-490.0,0.00016593,2]
[369039105,1751441453840,-490.0,0.00016593,2]
[369039107,1751441453850,-490.0,0.00016593,2]
[369039109,1751441453860,-490.0,0.00016593,2]
[369039111,1751441453869,-490.0,0.00016593,2]
[369039113,1751441453878,-490.0,0.00016593,2]
[369039115,1751441453887,-490.0,0.00016593,2]
[369039117,1751441453897,-490.0,0.00016593,2]
[369039119,1751441453906,-490.0,0.00016593,2]
[369039121,1751441453915,-490.0,0.00016593,2]
[369039124,1751441453925,-490.0,0.00016593,2]
[369039126,1751441453935,-490.0,0.00016593,2]
[369039128,1751441453950,-490.0,0.00016593,2]
[369039130,1751441453959,-490.0,0.00016593,2]
[369039132,1751441453968,-490.0,0.00016593,2]
[369039134,1751441453978,-490.0,0.00016593,2]
[369039136,1751441453989,-490.0,0.00016593,2]
[369039138,1751441453998,-490.0,0.00016593,2]
[369039140,1751441454008,-490.0,0.00016593,2]
[369039142,1751441454017,-490.0,0.00016593,2]
[369039144,1751441454026,-490.0,0.00016593,2]
[369039146,1751441454035,-490.0,0.00016593,2]
[369039148,1751441454044,-490.0,0.00016593,2]
[369039150,1751441454054,-490.0,0.00016593,2]
[369039152,1751441454063,-490.0,0.00016593,2]
[369039154,1751441454072,-490.0,0.00016593,2]
[369039156,1751441454081,-711.03,0.00016593,2]
[369039158,1751441454091,-490.0,0.00016593,2]
[369039159,1751441454100,-490.0,0.00016593,2]
[369039162,1751441454110,-490.0,0.00016593,2]
[369039164,1751441454119,-490.0,0.00016593,2]
[369039166,1751441454128,-1020.27,0.00016593,2]
[369039168,1751441454138,-490.0,0.00016593,2]
[369039170,1751441454147,-681.06,0.00016593,2]
[369039171,1751441454156,-490.0,0.00016593,2]
[369039174,1751441454166,-490.0,0.00016593,2]
[369039176,1751441454175,-490.0,0.00016593,2]
[369039178,1751441454184,-490.0,0.00016593,2]
[369039179,1751441454194,-490.0,0.00016593,2]
[369039182,1751441454203,-490.0,0.00016593,2]
[369039184,1751441454213,-490.0,0.00016593,2]
[369039186,1751441454223,-490.0,0.00016593,2]
[369039188,1751441454232,-490.0,0.00016593,2]
[369039194,1751441454397,-490.0,0.00016593,2]
[369039195,1751441454412,-490.0,0.00016593,2]
[369039196,1751441454421,-809.45,0.00016593,2]
[369039197,1751441454430,-490.0,0.00016593,2]
[369039198,1751441454439,-490.0,0.00016593,2]
[369039199,1751441454449,-490.0,0.00016593,2]
[369039200,1751441454458,-533.39,0.00016593,2]
[369039201,1751441454467,-2071.56,0.00016593,2]
[369039202,1751441454477,-490.0,0.00016593,2]
[369039203,1751441454486,-490.0,0.00016593,2]
[369039204,1751441454496,-490.0,0.00016593,2]
[369039205,1751441454505,-490.0,0.00016593,2]
[369039206,1751441454515,-490.0,0.00016593,2]
[369039208,1751441454524,-558.82,0.00016593,2]
[369039210,1751441454534,-993.89,0.00016593,2]
[369039212,1751441454543,-490.0,0.00016593,2]
[369039214,1751441454552,-490.0,0.00016593,2]
[369039216,1751441454561,-1055.43,0.00016593,2]
[369039218,1751441454571,-490.0,0.00016593,2]
[369039219,1751441454580,-490.0,0.00016593,2]
[369039221,1751441454589,-1586.04,0.00016593,2]
[369039223,1751441454598,-490.0,0.00016593,2]
[369039225,1751441454608,-490.0,0.00016593,2]
[369039226,1751441454618,-619.15,0.00016593,2]
[369039227,1751441454627,-490.0,0.00016593,2]
[369039228,1751441454636,-490.0,0.00016593,2]
[369039229,1751441454646,-490.0,0.00016593,2]
[369039230,1751441454656,-862.76,0.00016593,2]
[369039231,1751441454666,-490.0,0.00016593,2]
[369039232,1751441454675,-490.0,0.00016593,2]
[369039233,1751441454684,-490.0,0.00016593,2]
[369039234,1751441454694,-490.0,0.00016593,2]
[369039235,1751441454704,-812.54,0.00016593,2]
[369039236,1751441454713,-490.0,0.00016593,2]
[369039237,1751441454722,-490.0,0.00016593,2]
[369039238,1751441454732,-490.0,0.00016593,2]
[369039239,1751441454741,-490.0,0.00016593,2]
[369039240,1751441454751,-490.0,0.00016593,2]
[369039241,1751441454760,-490.0,0.00016593,2]
[369039242,1751441454769,-1735.85,0.00016593,2]
[369039243,1751441454778,-490.0,0.00016593,2]
[369039244,1751441454787,-490.0,0.00016593,2]
[369039245,1751441454797,-490.0,0.00016593,2]
[369039246,1751441454806,-1404.28,0.00016593,2]
[369039247,1751441454816,-490.0,0.00016593,2]
[369039248,1751441454825,-846.97,0.00016593,2]
[369039249,1751441454835,-490.0,0.00016593,2]
[369039250,1751441454844,-490.0,0.00016593,2]
[369039251,1751441454853,-490.0,0.00016593,2]
[369039252,1751441454862,-535.18,0.00016593,2]
[369039253,1751441454872,-542.07,0.00016593,2]
[369039254,1751441454881,-490.0,0.00016593,2]
[369039255,1751441454891,-490.0,0.00016593,2]
[369039256,1751441454900,-1010.69,0.00016593,2]
[369039257,1751441454909,-490.0,0.00016593,2]
[369039258,1751441454919,-490.0,0.00016593,2]
[369039259,1751441454928,-500.0,0.00016593,2]
[369039260,1751441454938,-490.0,0.00016593,2]
[369039261,1751441454950,-490.0,0.00016593,2]
[369039262,1751441454959,-490.0,0.00016593,2]
[369039263,1751441454968,-490.0,0.00016593,2]
[369039264,1751441454978,-500.0,0.00016593,2]
[369039265,1751441454987,-490.0,0.00016593,2]
[369039266,1751441454996,-490.0,0.00016593,2]
[369039267,1751441455005,-490.0,0.00016593,2]
[369039268,1751441455017,-1356.55,0.00016593,2]
[369039270,1751441455027,-490.0,0.00016593,2]
[369039271,1751441455037,-490.0,0.00016593,2]
[369039272,1751441455046,-351.21427641,0.00016593,2]
[369039273,1751441455055,-1200.82,0.00016593,2]
[369039274,1751441455065,-490.0,0.00016593,2]
[369039275,1751441455074,-2365.59,0.00016593,2]
[369039277,1751441455083,-490.0,0.00016593,2]
[369039279,1751441455092,-490.0,0.00016593,2]
[369039281,1751441455102,-490.0,0.00016593,2]
[369039282,1751441455111,-490.0,0.00016593,2]
[369039285,1751441455122,-490.0,0.00016593,2]
[369039287,1751441455131,-490.0,0.00016593,2]
[369039288,1751441455140,-618.41,0.00016593,2]
[369039290,1751441455149,-1124.39,0.00016593,2]
[369039293,1751441455160,-573.12,0.00016593,2]
[369039295,1751441455169,-1755.5,0.00016593,2]
[369039296,1751441455179,-490.0,0.00016593,2]
[369039297,1751441455188,-500.0,0.00016594,2]
[369039298,1751441455197,-500.0,0.00016594,2]
[369039299,1751441455207,-500.0,0.00016594,2]
[369039300,1751441455216,-500.0,0.00016595,2]
[369039301,1751441455225,-500.0,0.00016595,2]
[369039302,1751441455234,-500.0,0.00016595,2]
[369039303,1751441455244,-500.0,0.00016596,2]
[369039304,1751441455253,-581.56809757,0.00016596,2]
[369039305,1751441455263,-7708.68562875,0.00016643,2]
[369039306,1751441455272,-1553.0,0.00016684,2]
[369039308,1751441455282,-925.42,0.00016689,2]
[369039310,1751441455291,-1598.78,0.00016689,2]
[369039312,1751441455300,-500.0,0.00016692,2]
[369039314,1751441455309,-500.0,0.00016692,2]
[369039316,1751441455318,-642.87,0.00016692,2]
[369039318,1751441455327,-500.0,0.00016692,2]
[369039320,1751441455337,-39120.43753582,0.00016692,2]
[369039322,1751441455346,-7993.90699701,0.00016698,2]
[369039324,1751441455355,-2287.86628,0.000167,2]
[369039326,1751441455364,-30669.27,0.000167,2]
[369039327,1751441455386,-490.0,0.00016712,2]
[369039328,1751441455395,-490.0,0.00016712,2]
[369039329,1751441455405,-490.0,0.00016712,2]
[369039330,1751441455414,-424.3797814,0.00016712,2]
[369039331,1751441455424,-1076.07,0.00016712,2]
[369039332,1751441455433,-490.0,0.00016712,2]
[369039333,1751441455443,-1271.74,0.00016712,2]
[369039334,1751441455452,-490.0,0.00016712,2]
[369039335,1751441455462,-1267.68,0.00016712,2]
[369039336,1751441455471,-2686.38,0.00016712,2]
[369039337,1751441455480,-490.0,0.00016712,2]
[369039338,1751441455489,-845.78,0.00016712,2]
[369039339,1751441455498,-490.0,0.00016712,2]
[369039340,1751441455508,-1210.33,0.00016712,2]
[369039341,1751441455518,-607.3,0.00016712,2]
[369039342,1751441455527,-1381.63,0.00016712,2]
[369039343,1751441455537,-490.0,0.00016712,2]
[369039344,1751441455547,-919.06,0.00016712,2]
[369039345,1751441455556,-904.67,0.00016712,2]
[369039346,1751441455566,-490.0,0.00016712,2]
[369039347,1751441455575,-490.0,0.00016712,2]
[369039348,1751441455585,-490.0,0.00016712,2]
[369039349,1751441455595,-490.0,0.00016712,2]
[369039350,1751441455604,-490.0,0.00016712,2]
[369039351,1751441455614,-490.0,0.00016712,2]
[369039352,1751441455623,-490.0,0.00016712,2]
[369039353,1751441455633,-490.0,0.00016712,2]
[369039354,1751441455642,-490.0,0.00016712,2]
[369039355,1751441455651,-490.0,0.00016712,2]
[369039356,1751441455661,-490.0,0.00016712,2]
[369039357,1751441455670,-490.0,0.00016712,2]
[369039358,1751441455679,-2855.07,0.00016712,2]
[369039359,1751441455689,-490.0,0.00016712,2]
[369039360,1751441455698,-490.0,0.00016712,2]
[369039361,1751441455707,-4569.47,0.00016712,2]
[369039362,1751441455717,-490.0,0.00016712,2]
[369039363,1751441455726,-490.0,0.00016712,2]
[369039364,1751441455735,-199.75,0.00016712,2]
[369039365,1751441455745,-490.0,0.00016712,2]
[369039366,1751441455756,-490.0,0.00016712,2]
[369039367,1751441455765,-490.0,0.00016712,2]
[369039368,1751441455774,-490.0,0.00016712,2]
[369039369,1751441455784,-490.0,0.00016712,2]
[369039370,1751441455794,-490.0,0.00016712,2]
[369039371,1751441455803,-490.0,0.00016712,2]
[369039372,1751441455812,-683.08,0.00016712,2]
[369039373,1751441455822,-441.59954794,0.00016712,2]
[369039374,1751441455831,-490.0,0.00016712,2]
[369039375,1751441455841,-1336.66,0.00016712,2]
[369039376,1751441455850,-1113.64,0.00016712,2]
[369039377,1751441455859,-490.0,0.00016712,2]
[369039378,1751441455869,-803.97,0.00016712,2]
[369039379,1751441455878,-490.0,0.00016712,2]
[369039380,1751441455888,-224.99,0.00016712,2]
[369039381,1751441455897,-1562.80434725,0.0001673,2]
[369039382,1751441455907,-100363.72404111,0.0001673,2]
[369039383,1751441456476,-3096.81158576,0.0001673,2]
[369039384,1751441456506,-53812.75873989,0.0001673,2]
[369039385,1751441456518,-1314.8802207,0.0001673,2]
[369039386,1751441456528,-3413.80694537,0.0001673,2]
[369039387,1751441457186,-490.0,0.00016438,2]
[369039388,1751441457196,-490.0,0.00016591,2]
[369039389,1751441457206,-265.98926427,0.00016591,2]
[369039390,1751441457223,-67.56338281,0.00016591,2]
[369039391,1751441457233,-490.0,0.00016592,2]
[369039392,1751441457243,-490.0,0.00016712,2]
[369039393,1751441457252,-17508.08700704,0.0001673,2]
[369039394,1751441457262,-5872.2738691,0.0001673,2]
[369039395,1751441457274,-2734.01518264,0.0001673,2]
[369039396,1751441457299,-5149.45306218,0.0001673,2]
[369039397,1751441457331,-490.0,0.00016592,2]
[369039398,1751441457341,-156.46556099,0.0001673,2]
[369039399,1751441458096,-177.94780538,0.00016163,2]
[369039400,1751441458110,-490.0,0.00016438,2]
[369039401,1751441458120,-490.0,0.00016438,2]
[369039402,1751441458130,-490.0,0.00016438,2]
[369039403,1751441458140,-490.0,0.00016438,2]
[369039404,1751441458150,-490.0,0.00016588,2]
[369039405,1751441458160,-490.0,0.00016591,2]
[369039406,1751441458170,-490.0,0.00016592,2]
[369039407,1751441458180,-490.0,0.00016593,2]
[369039408,1751441458383,-490.0,0.00016712,2]
[369039409,1751441458411,-490.0,0.00016712,2]
[369039410,1751441458421,-490.0,0.00016712,2]
[369039411,1751441458430,-16024.37352488,0.0001673,2]
[369039412,1751441458451,-490.0,0.00016591,2]
[369039413,1751441458460,-5509.99999626,0.0001673,2]
[369039414,1751441458472,-690.90135285,0.0001673,2]
[369039415,1751441458491,-460.48701773,0.0001673,2]
[369039416,1751441458511,-2917.97374082,0.0001673,2]
[369039417,1751441458522,-4550.80000004,0.0001673,2]
[369039418,1751441458533,-10557.0,0.0001673,2]
[369039419,1751441458625,-490.0,0.00016438,2]
[369039420,1751441458634,-490.0,0.00016592,2]
[369039421,1751441458643,-3853.44999999,0.0001673,2]
[369039422,1751441458654,-25530.0388029,0.0001673,2]
[369039423,1751441483875,-5480.94,0.00015742,2]
[369039424,1751441483900,-9038.12,0.00015742,2]
[369039425,1751441484021,-151.0,0.00016307,2]
[369039426,1751441484054,-177.94780538,0.00016314,2]
[369039427,1751441484085,-302.54,0.00016336,2]
[369039428,1751441488437,302.88,0.00016331,2]
[369039429,1751441496468,305.21,0.00016331,2]
[369039430,1751441500418,188.0,0.00015745,2]
[369039431,1751441505813,303.01,0.00015742,2]
[369039432,1751441511398,60352.77037459,0.00027397,120]
[369039433,1751441527556,307.6338421,0.00013999,2]
[369039435,1751441537813,500.0,0.00013999,2]
[369039436,1751441537849,424.80314309,0.00013999,2]
[369039437,1751441537889,386.8028787,0.00013999,2]
[369039438,1751441547381,50000.0,0.00027397,120]
[369039439,1751441557835,184.35328092,0.00016328,2]
[369039440,1751441584443,1583.96,0.00015598,2]
[369039444,1751441635757,177.94780538,0.00016388,2]
[369039446,1751441639461,2819.21265747,0.00016388,2]
[369039456,1751441725798,6782.0344,0.00016391,2]
[369039461,1751441788881,775.2,0.00015515,2]
[369039462,1751441800408,1000.0,0.00015521,2]
[369039465,1751441814726,177.94780538,0.00016338,2]
[369039471,1751441884039,1079.9119,0.00016338,2]
[369039472,1751441896041,159.6658062,0.00016338,2]
[369039474,1751441904265,184.35328092,0.00016325,2]
[369039483,1751441982649,1094.09758908,0.00015468,2]
[369039484,1751441982674,20000.0,0.00015468,2]
[369039485,1751441982698,11652.82241092,0.00015468,2]
[369039487,1751441985111,177.94780538,0.00016338,2]
[369039489,1751441994791,160.03,0.00013699,2]
[369039493,1751442042009,4684.2634319,0.00027397,120]
[369039497,1751442072205,8009.1997837,0.00015453,2]
[369039498,1751442072228,15890.8002163,0.00015453,2]
[369039502,1751442113110,157.38734727,0.00016338,2]
[369039508,1751442140730,2500.0,0.00016338,2]
[369039510,1751442157557,1451.81243643,0.00016338,2]
[369039511,1751442157582,1085.47895523,0.00016338,2]
[369039513,1751442172508,215.35,0.00015438,2]
[369039514,1751442177675,159.6658062,0.00016338,2]
[369039516,1751442178940,536.0,0.00015665,2]
[369039517,1751442190476,250.0,0.00015,2]
[369039521,1751442228779,731.49,0.00015437,2]
[369039522,1751442228961,167.41,0.00015437,2]
[369039524,1751442233432,295.69,0.00015437,2]
[369039526,1751442245539,2925.95869021,0.00016338,2]
[369039528,1751442270617,200.0,0.00015439,2]
[369039543,1751442379236,157.38734727,0.00016338,2]
[369039549,1751442405946,166.95,0.00015903,2]
[369039563,1751442440196,200.0,0.0001544,2]
[369039565,1751442455133,159.6658062,0.00016338,2]
[369039567,1751442494417,787.9223,0.00016338,2]
[369039568,1751442503656,11961.03109489,0.00016338,2]
[369039569,1751442503680,20000.0,0.00016338,2]
[369039570,1751442503703,26.20630511,0.00016338,2]
[369039572,1751442527552,200.0,0.00015438,7]
[369039576,1751442553922,591.42317993,0.00027397,120]
[369039577,1751442591145,204.27,0.00015443,2]
[369039579,1751442631884,2633.36282118,0.00016338,2]
[369039581,1751442632109,-300.0,0.00016406,2]
[369039582,1751442632119,-1200.0,0.00016406,2]
[369039583,1751442632129,-166.69245729,0.00016406,2]
[369039584,1751442632138,-305.12,0.00016407,2]
[369039585,1751442632147,-305.27,0.00016407,2]
[369039586,1751442632157,-303.5,0.00016407,2]
[369039587,1751442632167,-302.85,0.00016407,2]
[369039588,1751442632176,-64.91766067,0.00016407,2]
[369039589,1751442632201,-240.07233933,0.00016407,2]
[369039590,1751442632210,-299.34019763,0.00016407,2]
[369039591,1751442632247,-0.90980237,0.00016407,2]
[369039592,1751442632256,-304.68,0.00016407,2]
[369039593,1751442632265,-305.44,0.00016407,2]
[369039594,1751442632274,-302.96,0.00016407,2]
[369039595,1751442632283,-300.48,0.00016407,2]
[369039596,1751442632293,-301.93,0.00016407,2]
[369039597,1751442632302,-210.40855944,0.00016407,2]
[369039598,1751442632314,-93.95144056,0.00016407,2]
[369039599,1751442632323,-302.41,0.00016407,2]
[369039600,1751442632332,-304.71,0.00016407,2]
[369039601,1751442632341,-303.75,0.00016407,2]
[369039602,1751442632350,-302.16,0.00016408,2]
[369039603,1751442632360,-300.78,0.00016408,2]
[369039604,1751442632369,-305.09,0.00016408,2]
[369039605,1751442632379,-300.95,0.00016408,2]
[369039606,1751442632388,-300.27,0.00016408,2]
[369039607,1751442632397,-305.97,0.00016408,2]
[369039608,1751442632406,-300.01,0.00016408,2]
[369039609,1751442632416,-303.04,0.00016408,2]
[369039610,1751442632425,-550.0,0.00016408,2]
[369039611,1751442632435,-301.7,0.00016408,2]
[369039612,1751442632444,-301.99,0.00016408,2]
[369039613,1751442632454,-302.85,0.00016408,2]
[369039614,1751442632463,-301.42,0.00016408,2]
[369039615,1751442632472,-11784.75476137,0.00016409,2]
[369039616,1751442632482,-6192.86187791,0.00016412,2]
[369039617,1751442632493,-1413.48841449,0.00016412,2]
[369039618,1751442632505,-2993.70558463,0.00016412,2]
[369039619,1751442632516,-2015.06372176,0.00016412,2]
[369039620,1751442632527,-1796.24667564,0.00016412,2]
[369039621,1751442632539,-5292.53928424,0.00016412,2]
[369039624,1751442632566,-936.79460021,0.00016412,2]
[369039626,1751442632578,-2687.42860783,0.00016412,2]
[369039629,1751442632590,-553.57,0.00016412,2]
[369039640,1751442632697,-2406.28123329,0.00016412,2]
[369039642,1751442632707,-5193.47953998,0.00016418,2]
[369039644,1751442632716,-300.0,0.00016419,2]